fUSD/lending_fUSD_20240104
["ID","MTS","AMOUNT","RATE_DAILY","PERIOD"]
[310197963,1704397868149,-543.0074676,0.00033972,2]
[310197964,1704397868159,-500.0,0.00033972,2]
[310197965,1704397868168,-500.0,0.00033972,2]
[310197966,1704397868179,-500.0,0.00033972,2]
[310197967,1704397868189,-500.0,0.00033972,2]
[310197968,1704397868199,-426.22376736,0.00033972,2]
[310197969,1704397868209,-500.0,0.00033972,2]
[310197970,1704397868219,-500.0,0.00033972,2]
[310197971,1704397868228,-500.0,0.00033972,2]
[310197972,1704397868238,-502.31279258,0.00033972,2]
[310197973,1704397868248,-500.0,0.00033972,2]
[310197974,1704397868258,-500.0,0.00033972,2]
[310197975,1704397868268,-500.0,0.00033972,2]
[310197976,1704397868278,-500.0,0.00033972,2]
[310197977,1704397868287,-500.0,0.00033972,2]
[310197978,1704397868299,-500.0,0.00033972,2]
[310197979,1704397868308,-500.0,0.00033972,2]
[310197980,1704397868317,-500.0,0.00033972,2]
[310197981,1704397868328,-500.0,0.00033972,2]
[310197982,1704397868337,-500.0,0.00033972,2]
[310197983,1704397868347,-500.0,0.00033972,2]
[310197984,1704397868356,-500.0,0.00033972,2]
[310197985,1704397868366,-500.0,0.00033972,2]
[310197986,1704397868376,-500.0,0.00033972,2]
[310197987,1704397868386,-500.0,0.00033972,2]
[310197988,1704397868396,-500.0,0.00033972,2]
[310197989,1704397868407,-601.16727432,0.00033972,2]
[310197990,1704397868417,-500.0,0.00033972,2]
[310197991,1704397868427,-185.63872287,0.00033972,2]
[310197992,1704397868437,-500.0,0.00033972,2]
[310197993,1704397868446,-621.26888763,0.00033972,2]
[310197994,1704397868456,-500.0,0.00033972,2]
[310197995,1704397868466,-500.0,0.00033972,2]
[310197996,1704397868476,-403.64917706,0.00033972,2]
[310197997,1704397868486,-500.0,0.00033972,2]
[310197998,1704397868497,-599.28028203,0.00033972,2]
[310197999,1704397868507,-500.0,0.00033972,2]
[310198000,1704397868516,-500.0,0.00033972,2]
[310198001,1704397868526,-500.0,0.00033972,2]
[310198002,1704397868536,-500.0,0.00033972,2]
[310198003,1704397868545,-279.7551089,0.00033972,2]
[310198004,1704397868555,-500.0,0.00033972,2]
[310198005,1704397868565,-228.06475297,0.00033972,2]
[310198006,1704397868575,-500.0,0.00033972,2]
[310198007,1704397868585,-500.0,0.00033972,2]
[310198008,1704397868594,-500.0,0.00033972,2]
[310198009,1704397868604,-503.27176165,0.00033972,2]
[310198010,1704397868614,-500.0,0.00033972,2]
[310198011,1704397868623,-500.0,0.00033972,2]
[310198012,1704397868634,-582.03771455,0.00033972,2]
[310198013,1704397868644,-500.0,0.00033972,2]
[310198014,1704397868654,-500.0,0.00033972,2]
[310198015,1704397868664,-500.0,0.00033972,2]
[310198016,1704397868674,-500.0,0.00033972,2]
[310198017,1704397868684,-500.0,0.00033972,2]
[310198018,1704397868695,-500.0,0.00033972,2]
[310198019,1704397868705,-500.0,0.00033972,2]
[310198020,1704397868715,-500.0,0.00033972,2]
[310198021,1704397868724,-500.0,0.00033972,2]
[310198022,1704397868734,-500.0,0.00033972,2]
[310198023,1704397868743,-500.0,0.00033972,2]
[310198024,1704397868761,-511.15638412,0.00033972,2]
[310198025,1704397868775,-536.9617382,0.00033972,2]
[310198026,1704397868786,-500.0,0.00033972,2]
[310198027,1704397868797,-500.0,0.00033972,2]
[310198028,1704397868808,-500.0,0.00033972,2]
[310198029,1704397868819,-428.85796861,0.00033972,2]
[310198030,1704397868832,-500.0,0.00033972,2]
[310198031,1704397868843,-331.06436982,0.00033972,2]
[310198032,1704397868854,-865.01,0.00033972,2]
[310198033,1704397868865,-500.0,0.00033972,2]
[310198034,1704397868876,-500.0,0.00033972,2]
[310198035,1704397868886,-500.0,0.00033972,2]
[310198036,1704397868903,-466.39870766,0.00033972,2]
[310198037,1704397868914,-469.88901409,0.00033972,2]
[310198038,1704397868928,-500.0,0.00033972,2]
[310198039,1704397868938,-583.33,0.00033972,2]
[310198040,1704397868948,-500.0,0.00033972,2]
[310198041,1704397868959,-500.0,0.00033972,2]
[310198042,1704397868970,-569.3939789,0.00033972,2]
[310198043,1704397868982,-500.0,0.00033972,2]
[310198044,1704397869005,-500.0,0.00033972,2]
[310198045,1704397869018,-500.0,0.00033972,2]
[310198046,1704397869028,-1284.32,0.00033972,2]
[310198047,1704397869043,-579.64,0.00033972,2]
[310198048,1704397869054,-500.0,0.00033972,2]
[310198049,1704397869064,-500.0,0.00033972,2]
[310198050,1704397869088,-500.0,0.00033972,2]
[310198051,1704397869099,-500.0,0.00033972,2]
[310198052,1704397869117,-522.98398156,0.00033972,2]
[310198053,1704397869128,-1058.09,0.00033972,2]
[310198054,1704397869139,-500.0,0.00033972,2]
[310198055,1704397869151,-162.89787358,0.00033972,2]
[310198056,1704397869161,-500.0,0.00033972,2]
[310198057,1704397869172,-404.48,0.00033972,2]
[310198058,1704397869183,-500.0,0.00033972,2]
[310198059,1704397869196,-591.47810534,0.00033972,2]
[310198060,1704397869206,-543.63,0.00033972,2]
[310198061,1704397869224,-500.0,0.00033972,2]
[310198062,1704397869238,-500.0,0.00033972,2]
[310198063,1704397869248,-500.0,0.00033972,2]
[310198064,1704397869497,-500.0,0.00033972,2]
[310198065,1704397869520,-1700.97,0.00033972,2]
[310198066,1704397869531,-500.0,0.00033972,2]
[310198067,1704397869542,-521.16135719,0.00033972,2]
[310198068,1704397869552,-500.0,0.00033972,2]
[310198069,1704397869562,-863.75,0.00033972,2]
[310198070,1704397869572,-731.04,0.00033972,2]
[310198071,1704397869585,-173.9030343,0.00033972,2]
[310198072,1704397869595,-500.0,0.00033972,2]
[310198073,1704397869607,-580.4,0.00033972,2]
[310198074,1704397869622,-500.0,0.00033972,2]
[310198075,1704397869633,-500.0,0.00033972,2]
[310198076,1704397869648,-500.0,0.00033972,2]
[310198077,1704397869659,-500.0,0.00033972,2]
[310198078,1704397869670,-500.0,0.00033972,2]
[310198079,1704397869680,-500.0,0.00033972,2]
[310198080,1704397869690,-500.0,0.00033972,2]
[310198081,1704397869700,-177.63132803,0.00033972,2]
[310198082,1704397869709,-500.0,0.00033972,2]
[310198083,1704397869718,-500.0,0.00033972,2]
[310198084,1704397869728,-500.0,0.00033972,2]
[310198085,1704397869738,-500.0,0.00033972,2]
[310198086,1704397869748,-6526.71,0.00033972,2]
[310198087,1704397869758,-500.0,0.00033972,2]
[310198088,1704397869767,-2294.31,0.00033972,2]
[310198089,1704397869777,-500.0,0.00033972,2]
[310198090,1704397869787,-722.55,0.00033972,2]
[310198091,1704397869797,-500.0,0.00033972,2]
[310198092,1704397869807,-500.0,0.00033972,2]
[310198093,1704397869817,-500.0,0.00033972,2]
[310198094,1704397869827,-500.0,0.00033972,2]
[310198095,1704397869836,-1691.72,0.00033972,2]
[310198096,1704397869846,-921.24,0.00033972,2]
[310198097,1704397869856,-500.0,0.00033972,2]
[310198098,1704397869865,-500.0,0.00033972,2]
[310198099,1704397869875,-589.58,0.00033972,2]
[310198100,1704397869885,-1289.87,0.00033972,2]
[310198101,1704397869895,-551.9051112,0.00033972,2]
[310198102,1704397869905,-500.0,0.00033972,2]
[310198103,1704397869914,-556.12611043,0.00033972,2]
[310198104,1704397869923,-500.0,0.00033972,2]
[310198105,1704397869935,-500.0,0.00033972,2]
[310198106,1704397869945,-3756.74,0.00033972,2]
[310198107,1704397869956,-1426.77,0.00033972,2]
[310198108,1704397869966,-500.0,0.00033972,2]
[310198109,1704397869976,-500.0,0.00033972,2]
[310198110,1704397869985,-598.43,0.00033972,2]
[310198111,1704397869995,-500.0,0.00033972,2]
[310198112,1704397870006,-500.0,0.00033972,2]
[310198113,1704397870015,-453.48293538,0.00033972,2]
[310198114,1704397870026,-1080.46,0.00033972,2]
[310198115,1704397870035,-2739.45,0.00033972,2]
[310198116,1704397870045,-271.8020349,0.00033972,2]
[310198117,1704397870054,-174.98526436,0.00033972,2]
[310198118,1704397870063,-542.24462122,0.00033972,2]
[310198119,1704397870072,-500.0,0.00033972,2]
[310198120,1704397870081,-500.0,0.00033972,2]
[310198121,1704397870091,-500.0,0.00033972,2]
[310198122,1704397870101,-500.0,0.00033972,2]
[310198123,1704397870111,-968.76,0.00033972,2]
[310198124,1704397870120,-1542.0,0.00033972,2]
[310198125,1704397870130,-500.0,0.00033972,2]
[310198126,1704397870139,-1230.11,0.00033972,2]
[310198127,1704397870149,-500.0,0.00033972,2]
[310198128,1704397870158,-605.11648403,0.00033972,2]
[310198129,1704397870167,-500.0,0.00033972,2]
[310198130,1704397870177,-500.0,0.00033972,2]
[310198131,1704397870188,-500.0,0.00033972,2]
[310198132,1704397870197,-200.0,0.00033972,2]
[310198133,1704397870207,-500.0,0.00033972,2]
[310198134,1704397870216,-500.0,0.00033972,2]
[310198135,1704397870225,-938.31,0.00033972,2]
[310198136,1704397870235,-600.84,0.00033972,2]
[310198137,1704397870245,-500.0,0.00033972,2]
[310198138,1704397870255,-500.0,0.00033972,2]
[310198139,1704397870265,-500.0,0.00033972,2]
[310198140,1704397870274,-500.0,0.00033972,2]
[310198141,1704397870284,-1230.77,0.00033972,2]
[310198142,1704397870293,-500.0,0.00033972,2]
[310198143,1704397870304,-500.0,0.00033972,2]
[310198144,1704397870314,-500.0,0.00033972,2]
[310198145,1704397870324,-500.0,0.00033972,2]
[310198146,1704397870333,-529.04,0.00033972,2]
[310198147,1704397870345,-514.29,0.00033972,2]
[310198148,1704397870354,-923.67,0.00033972,2]
[310198149,1704397870364,-500.0,0.00033972,2]
[310198150,1704397870373,-1091.29,0.00033972,2]
[310198151,1704397870383,-500.0,0.00033972,2]
[310198152,1704397870393,-500.0,0.00033972,2]
[310198153,1704397870403,-500.0,0.00033972,2]
[310198154,1704397870413,-500.0,0.00033972,2]
[310198155,1704397870423,-500.0,0.00033972,2]
[310198156,1704397870434,-989.1,0.00033972,2]
[310198157,1704397870444,-500.0,0.00033972,2]
[310198158,1704397870454,-602.25,0.00033972,2]
[310198159,1704397870464,-500.0,0.00033972,2]
[310198160,1704397870473,-3309.5,0.00033972,2]
[310198161,1704397870483,-500.0,0.00033972,2]
[310198162,1704397870493,-532.96,0.00033972,2]
[310198163,1704397870503,-500.0,0.00033972,2]
[310198164,1704397870513,-500.0,0.00033972,2]
[310198165,1704397870522,-500.0,0.00033972,2]
[310198166,1704397870532,-536.43361934,0.00033972,2]
[310198167,1704397870542,-500.0,0.00033972,2]
[310198168,1704397870552,-500.0,0.00033972,2]
[310198169,1704397870561,-895.61,0.00033972,2]
[310198170,1704397870572,-765.49,0.00033972,2]
[310198171,1704397870581,-500.0,0.00033972,2]
[310198172,1704397870591,-923.89,0.00033972,2]
[310198173,1704397870601,-500.0,0.00033972,2]
[310198174,1704397870610,-500.0,0.00033972,2]
[310198175,1704397870620,-504.61188724,0.00033972,2]
[310198176,1704397870630,-500.0,0.00033972,2]
[310198177,1704397870640,-356.79,0.00033972,2]
[310198178,1704397870649,-500.0,0.00033972,2]
[310198179,1704397870659,-500.0,0.00033972,2]
[310198180,1704397870668,-500.0,0.00033972,2]
[310198181,1704397870678,-500.0,0.00033972,2]
[310198182,1704397870689,-587.04,0.00033972,2]
[310198183,1704397870698,-1030.36,0.00033972,2]
[310198184,1704397870708,-500.0,0.00033972,2]
[310198185,1704397870718,-500.0,0.00033972,2]
[310198186,1704397870727,-500.0,0.00033972,2]
[310198187,1704397870736,-627.71,0.00033972,2]
[310198188,1704397870745,-500.0,0.00033972,2]
[310198189,1704397870754,-789.2,0.00033972,2]
[310198190,1704397870764,-4224.76,0.00033972,2]
[310198191,1704397870774,-500.0,0.00033972,2]
[310198192,1704397870783,-500.0,0.00033972,2]
[310198193,1704397870793,-500.0,0.00033972,2]
[310198194,1704397870803,-5231.08,0.00033972,2]
[310198195,1704397870812,-307.74365049,0.00033972,2]
[310198196,1704397870822,-1469.18,0.00033972,2]
[310198197,1704397870831,-500.0,0.00033972,2]
[310198198,1704397870841,-500.0,0.00033972,2]
[310198199,1704397870851,-500.0,0.00033972,2]
[310198200,1704397870860,-807.05,0.00033972,2]
[310198201,1704397870870,-500.0,0.00033972,2]
[310198202,1704397870880,-500.0,0.00033972,2]
[310198203,1704397870889,-637.19,0.00033972,2]
[310198204,1704397870898,-500.0,0.00033972,2]
[310198205,1704397870908,-500.0,0.00033972,2]
[310198206,1704397870917,-500.0,0.00033972,2]
[310198207,1704397870927,-565.04,0.00033972,2]
[310198208,1704397870938,-500.0,0.00033972,2]
[310198209,1704397870947,-853.71,0.00033972,2]
[310198210,1704397870957,-500.0,0.00033972,2]
[310198211,1704397870966,-572.16,0.00033972,2]
[310198212,1704397870976,-509.34724189,0.00033972,2]
[310198213,1704397870985,-1481.18,0.00033972,2]
[310198214,1704397870995,-1368.13,0.00033972,2]
[310198215,1704397871007,-515.83,0.00033972,2]
[310198216,1704397871016,-561.22,0.00033972,2]
[310198217,1704397871026,-500.0,0.00033972,2]
[310198218,1704397871036,-500.0,0.00033972,2]
[310198219,1704397871046,-500.0,0.00033972,2]
[310198220,1704397871055,-500.0,0.00033972,2]
[310198221,1704397871064,-500.0,0.00033972,2]
[310198222,1704397871074,-1034.34,0.00033972,2]
[310198223,1704397871085,-2410.15,0.00033972,2]
[310198224,1704397871096,-500.0,0.00033972,2]
[310198225,1704397871107,-500.0,0.00033972,2]
[310198226,1704397871116,-500.0,0.00033972,2]
[310198227,1704397871126,-500.0,0.00033972,2]
[310198228,1704397871136,-500.0,0.00033972,2]
[310198229,1704397871146,-500.0,0.00033972,2]
[310198230,1704397871156,-500.0,0.00033972,2]
[310198231,1704397871165,-351.99789873,0.00033972,2]
[310198232,1704397871175,-500.0,0.00033972,2]
[310198233,1704397871187,-500.0,0.00033972,2]
[310198234,1704397871197,-600.41,0.00033972,2]
[310198235,1704397871207,-500.0,0.00033972,2]
[310198236,1704397871218,-500.0,0.00033972,2]
[310198237,1704397871228,-500.0,0.00033972,2]
[310198238,1704397871238,-500.0,0.00033972,2]
[310198239,1704397871247,-500.0,0.00033972,2]
[310198240,1704397871257,-773.88,0.00033972,2]
[310198241,1704397871266,-500.0,0.00033972,2]
[310198242,1704397871276,-500.0,0.00033972,2]
[310198243,1704397871285,-500.0,0.00033972,2]
[310198244,1704397871295,-500.0,0.00033972,2]
[310198245,1704397871304,-500.0,0.00033972,2]
[310198246,1704397871314,-876.65,0.00033972,2]
[310198247,1704397871323,-500.0,0.00033972,2]
[310198248,1704397871333,-1745.78,0.00033972,2]
[310198249,1704397871342,-529.83,0.00033972,2]
[310198250,1704397871352,-1330.86,0.00033972,2]
[310198251,1704397871361,-3939.72,0.00033972,2]
[310198252,1704397871370,-500.0,0.00033972,2]
[310198253,1704397871379,-520.67279679,0.00033972,2]
[310198254,1704397871389,-750.41,0.00033972,2]
[310198255,1704397871398,-1262.44,0.00033972,2]
[310198256,1704397871408,-549.41550939,0.00033972,2]
[310198257,1704397871417,-872.52,0.00033972,2]
[310198258,1704397871427,-500.0,0.00033972,2]
[310198259,1704397871437,-805.05,0.00033972,2]
[310198260,1704397871447,-500.0,0.00033972,2]
[310198261,1704397871456,-500.0,0.00033972,2]
[310198262,1704397871465,-978.86,0.00033972,2]
[310198263,1704397871475,-500.0,0.00033972,2]
[310198264,1704397871485,-500.0,0.00033972,2]
[310198265,1704397871495,-500.0,0.00033972,2]
[310198266,1704397871504,-500.0,0.00033972,2]
[310198267,1704397871514,-500.0,0.00033972,2]
[310198268,1704397871524,-500.0,0.00033972,2]
[310198269,1704397871534,-1031.78,0.00033972,2]
[310198270,1704397871543,-500.0,0.00033972,2]
[310198271,1704397871552,-500.0,0.00033972,2]
[310198272,1704397871562,-500.0,0.00033972,2]
[310198273,1704397871571,-500.0,0.00033972,2]
[310198274,1704397871581,-500.0,0.00033972,2]
[310198275,1704397871590,-1359.87,0.00033972,2]
[310198276,1704397871599,-598.11,0.00033972,2]
[310198277,1704397871613,-160.62729144,0.00033972,2]
[310198278,1704397871623,-500.0,0.00033972,2]
[310198279,1704397871633,-566.68,0.00033972,2]
[310198280,1704397871643,-500.0,0.00033972,2]
[310198281,1704397871652,-500.0,0.00033972,2]
[310198282,1704397871662,-500.0,0.00033972,2]
[310198283,1704397871678,-637.82,0.00033972,2]
[310198284,1704397871688,-500.0,0.00033972,2]
[310198285,1704397871698,-974.78,0.00033972,2]
[310198286,1704397871707,-1353.52,0.00033972,2]
[310198287,1704397871717,-1044.66,0.00033972,2]
[310198288,1704397871727,-500.0,0.00033972,2]
[310198289,1704397871737,-500.0,0.00033972,2]
[310198290,1704397871748,-500.0,0.00033972,2]
[310198291,1704397871757,-500.0,0.00033972,2]
[310198292,1704397871767,-500.0,0.00033972,2]
[310198293,1704397871777,-500.0,0.00033972,2]
[310198294,1704397871786,-500.0,0.00033972,2]
[310198295,1704397871795,-500.0,0.00033972,2]
[310198296,1704397871805,-2163.78,0.00033972,2]
[310198297,1704397871816,-500.0,0.00033972,2]
[310198298,1704397871826,-500.0,0.00033972,2]
[310198299,1704397871835,-622.8,0.00033972,2]
[310198300,1704397871917,-500.0,0.00033972,2]
[310198301,1704397871926,-1453.91,0.00033972,2]
[310198302,1704397871935,-1854.45,0.00033972,2]
[310198303,1704397871945,-500.0,0.00033972,2]
[310198304,1704397871954,-610.32,0.00033972,2]
[310198305,1704397871963,-500.0,0.00033972,2]
[310198306,1704397871972,-500.0,0.00033972,2]
[310198307,1704397871982,-500.0,0.00033972,2]
[310198308,1704397871995,-500.0,0.00033972,2]
[310198309,1704397872007,-500.0,0.00033972,2]
[310198310,1704397872016,-500.0,0.00033972,2]
[310198311,1704397872026,-500.0,0.00033972,2]
[310198312,1704397872035,-524.82,0.00033972,2]
[310198313,1704397872045,-2024.49,0.00033972,2]
[310198314,1704397872054,-500.0,0.00033972,2]
[310198315,1704397872064,-500.0,0.00033972,2]
[310198316,1704397872074,-853.3,0.00033972,2]
[310198317,1704397872083,-500.0,0.00033972,2]
[310198318,1704397872092,-155.39,0.00033979,2]
[310198319,1704397872101,-598.17,0.00033999,2]
[310198320,1704397872111,-100000.0,0.00034,4]
[310198321,1704397872120,-1000.0,0.00034,4]
[310198322,1704397872130,-292.91495176,0.00034,30]
[310198323,1704397872139,-500.0,0.00034,3]
[310198324,1704397872148,-1000.0,0.00034,7]
[310198325,1704397872157,-158.86,0.00034,2]
[310198326,1704397872166,-158.86,0.00034,2]
[310198327,1704397872175,-1820.04691551,0.00034007,6]
[310198328,1704397872184,-360.0,0.00034106,2]
[310198329,1704397872196,-291.16867459,0.00034146,2]
[310198330,1704397872205,-1314.01695543,0.00034146,2]
[310198331,1704397872214,-1475.40810216,0.00034146,2]
[310198332,1704397872223,-155.39,0.00034173,2]
[310198333,1704397872232,-174.36667706,0.00034193,2]
[310198334,1704397872241,-188.44,0.00034244,2]
[310198335,1704397872250,-735.66,0.00034245,2]
[310198336,1704397872260,-1641.98044309,0.00034245,2]
[310198337,1704397872269,-313.29647557,0.00034246,2]
[310198338,1704397872278,-500.0,0.00034246,2]
[310198339,1704397872287,-500.0,0.00034246,2]
[310198340,1704397872297,-500.0,0.00034246,2]
[310198341,1704397872307,-502.9111153,0.00034246,2]
[310198342,1704397872316,-500.0,0.00034246,2]
[310198343,1704397872325,-500.0,0.00034246,2]
[310198344,1704397872334,-517.01621789,0.00034246,2]
[310198345,1704397872345,-500.0,0.00034246,2]
[310198346,1704397872354,-500.0,0.00034246,2]
[310198347,1704397872363,-585.88272627,0.00034246,2]
[310198348,1704397872372,-1807.31,0.00034246,2]
[310198349,1704397872381,-500.0,0.00034246,2]
[310198350,1704397872390,-500.0,0.00034246,2]
[310198351,1704397872399,-500.0,0.00034246,2]
[310198352,1704397872408,-537.85434826,0.00034246,2]
[310198353,1704397872418,-500.0,0.00034246,2]
[310198354,1704397872428,-500.0,0.00034246,2]
[310198355,1704397872438,-500.0,0.00034246,2]
[310198356,1704397872447,-500.0,0.00034246,2]
[310198357,1704397872456,-397.80650369,0.00034246,2]
[310198358,1704397872465,-500.0,0.00034246,2]
[310198359,1704397872475,-500.0,0.00034246,2]
[310198360,1704397872484,-500.0,0.00034246,2]
[310198361,1704397872493,-500.0,0.00034246,2]
[310198362,1704397872502,-500.0,0.00034246,2]
[310198363,1704397872511,-500.0,0.00034246,2]
[310198364,1704397872520,-500.0,0.00034246,2]
[310198365,1704397872530,-500.0,0.00034246,2]
[310198366,1704397872539,-513.75549906,0.00034246,2]
[310198367,1704397872549,-500.0,0.00034246,2]
[310198368,1704397872558,-500.0,0.00034246,2]
[310198369,1704397872567,-500.0,0.00034246,2]
[310198370,1704397872577,-500.0,0.00034246,2]
[310198371,1704397872586,-385.51820518,0.00034246,2]
[310198372,1704397872595,-500.0,0.00034246,2]
[310198373,1704397872604,-500.0,0.00034246,2]
[310198374,1704397872613,-500.0,0.00034246,2]
[310198375,1704397872622,-588.57373117,0.00034246,2]
[310198376,1704397872631,-500.0,0.00034246,2]
[310198377,1704397872641,-500.0,0.00034246,2]
[310198378,1704397872650,-500.0,0.00034246,2]
[310198379,1704397872659,-500.0,0.00034246,2]
[310198380,1704397872668,-500.0,0.00034246,2]
[310198381,1704397872678,-243.34997955,0.00034246,2]
[310198382,1704397872688,-500.0,0.00034246,2]
[310198383,1704397872697,-500.0,0.00034246,2]
[310198384,1704397872706,-621.00145808,0.00034246,2]
[310198385,1704397872715,-500.0,0.00034246,2]
[310198386,1704397872724,-500.0,0.00034246,2]
[310198387,1704397872733,-500.0,0.00034246,2]
[310198388,1704397872742,-500.0,0.00034246,2]
[310198389,1704397872752,-500.0,0.00034246,2]
[310198390,1704397872761,-500.0,0.00034246,2]
[310198391,1704397872771,-500.0,0.00034246,2]
[310198392,1704397872780,-500.0,0.00034246,2]
[310198393,1704397872789,-500.0,0.00034246,2]
[310198394,1704397872798,-500.0,0.00034246,2]
[310198395,1704397872807,-500.0,0.00034246,2]
[310198396,1704397872817,-385.56694127,0.00034246,2]
[310198397,1704397872826,-500.0,0.00034246,2]
[310198398,1704397872836,-500.0,0.00034246,2]
[310198399,1704397872845,-500.0,0.00034246,2]
[310198400,1704397872854,-500.0,0.00034246,2]
[310198401,1704397872864,-500.0,0.00034246,2]
[310198402,1704397872874,-500.0,0.00034246,2]
[310198403,1704397872883,-500.0,0.00034246,2]
[310198404,1704397872892,-500.0,0.00034246,2]
[310198405,1704397872901,-500.0,0.00034246,2]
[310198406,1704397872910,-500.0,0.00034246,2]
[310198407,1704397872919,-473.99170595,0.00034246,2]
[310198408,1704397872928,-500.0,0.00034246,2]
[310198409,1704397872938,-500.0,0.00034246,2]
[310198410,1704397872947,-500.0,0.00034246,2]
[310198411,1704397872957,-500.0,0.00034246,2]
[310198412,1704397872967,-500.0,0.00034246,2]
[310198413,1704397872976,-865.01,0.00034246,2]
[310198414,1704397872986,-500.0,0.00034246,2]
[310198415,1704397872995,-500.0,0.00034246,2]
[310198416,1704397873007,-500.0,0.00034246,2]
[310198417,1704397873016,-500.0,0.00034246,2]
[310198418,1704397873026,-583.33,0.00034246,2]
[310198419,1704397873036,-500.0,0.00034246,2]
[310198420,1704397873044,-500.0,0.00034246,2]
[310198421,1704397873053,-500.0,0.00034246,2]
[310198422,1704397873063,-363.60242459,0.00034246,2]
[310198423,1704397873072,-500.0,0.00034246,2]
[310198424,1704397873082,-1284.32,0.00034246,2]
[310198425,1704397873091,-579.64,0.00034246,2]
[310198426,1704397873101,-500.0,0.00034246,2]
[310198427,1704397873110,-500.0,0.00034246,2]
[310198428,1704397873119,-500.0,0.00034246,2]
[310198429,1704397873129,-500.0,0.00034246,2]
[310198430,1704397873138,-1058.09,0.00034246,2]
[310198431,1704397873147,-500.0,0.00034246,2]
[310198432,1704397873158,-500.0,0.00034246,2]
[310198433,1704397873168,-500.0,0.00034246,2]
[310198434,1704397873177,-543.63,0.00034246,2]
[310198435,1704397873186,-500.0,0.00034246,2]
[310198436,1704397873198,-500.0,0.00034246,2]
[310198437,1704397873207,-500.0,0.00034246,2]
[310198438,1704397873217,-500.0,0.00034246,2]
[310198439,1704397873227,-1700.97,0.00034246,2]
[310198440,1704397873236,-500.0,0.00034246,2]
[310198441,1704397873246,-500.0,0.00034246,2]
[310198442,1704397873255,-863.75,0.00034246,2]
[310198443,1704397873266,-731.04,0.00034246,2]
[310198444,1704397873276,-500.0,0.00034246,2]
[310198445,1704397873286,-580.4,0.00034246,2]
[310198446,1704397873296,-500.0,0.00034246,2]
[310198447,1704397873306,-500.0,0.00034246,2]
[310198448,1704397873319,-436.24298003,0.00034246,2]
[310198449,1704397873328,-500.0,0.00034246,2]
[310198450,1704397873339,-500.0,0.00034246,2]
[310198451,1704397873355,-190.27,0.00034246,2]
[310198452,1704397873364,-500.0,0.00034246,2]
[310198453,1704397873376,-500.0,0.00034246,2]
[310198454,1704397873390,-500.0,0.00034246,2]
[310198455,1704397873400,-500.0,0.00034246,2]
[310198456,1704397873410,-500.0,0.00034246,2]
[310198457,1704397873421,-6526.71,0.00034246,2]
[310198458,1704397873430,-210.43747813,0.00034246,2]
[310198459,1704397873445,-2294.31,0.00034246,2]
[310198460,1704397873454,-500.0,0.00034246,2]
[310198461,1704397873465,-722.55,0.00034246,2]
[310198462,1704397873474,-440.93551001,0.00034246,2]